Cogmind - Beta 15 @@@ ROGUE MODE // 2025.06.27 @ 20:35:30 Player: freddy fastbear Result: Destroyed by S-27 Virus with Autogun Performance ------------- Evolutions (5) 2500 Regions Visited (8) 1600 Robots Destroyed (73) 365 Value Destroyed (2217) 2217 Prototype IDs (4) 80 Alien Tech Used (0) 0 Bonus (500) 500 TOTAL SCORE: 7262 Bonus ------- Entered DSFs 500 Cogmind --------- Core Integrity 0/1000 Matter 125/300 Energy 98/100 System Corruption 15% Temperature Cool (0) Movement Rolling (100) Location -5/Factory Parts ------- > --- POWER (2) -------- (None) > --- PROPULSION (4) --- Compact Wheel Compact Wheel > --- UTILITY (8) ------ Advanced Weight Redist. System Visual Processing Unit Improved Transmission Jammer Improved Hacking Suite > --- WEAPON (3) ------- (None) > --- INVENTORY (5) ---- Advanced Sensor Array Authchip [Propulsion] Authchip [Propulsion] Heavy Phase Cannon Peak State ------------ > --- POWER ------------ Light Deuterium Engine Light Deuterium Engine > --- PROPULSION ------- Field Propulsion Drive Field Propulsion Drive Nuclear Pulse Array > --- UTILITY ---------- Small Storage Unit Advanced Weight Redist. System Visual Processing Unit Improved Targeting Computer Core Analyzer Improved Transmission Jammer Improved Cloaking Device Improved Hacking Suite > --- WEAPON ----------- Variable Charge Gun Variable Charge Gun Variable Charge Gun > --- INVENTORY -------- Armored Wheel Advanced Weight Redist. System Advanced Weight Redist. System Authchip [Propulsion] Authchip [Propulsion] Variable Charge Gun [Rating: 80] Favorites ----------- Power Light Nuclear Core Engine Light Ion Engine Power Core Light Nuclear Core Propulsion VTOL Module Leg Aluminum Leg Wheel Armored Wheel Hover Unit Backup Propulsion I Flight Unit VTOL Module Utility Small Storage Unit Device Advanced Weight Redist. System Storage Small Storage Unit Processor Improved Targeting Computer Hackware Improved Hacking Suite Weapon Variable Charge Gun Energy Gun Variable Charge Gun Energy Cannon Ion Cannon Ballistic Gun Assault Rifle Ballistic Cannon Advanced Assault Cannon Launcher Grenade Launcher Special Melee Weapon Datajack Build | -11 -10 -9 -9 -8 -7 -6 -6 -5 ------- Run | Yrd Mat Mat Min Mat Fac Fac DSF Fac Slots Evolved 10 | . . 2 . 2 2 2 . 2 Power 1 | . . . . . 1 . . . Propulsion 2 | . . 1 . 1 . . . . Utility 6 | . . 1 . 1 1 2 . 1 Weapon 1 | . . . . . . . . 1 Parts Attached 93 | 7 1 21 3 7 21 1 7 25 Power 13 | 1 . 3 1 2 2 . 1 3 Engine 8 | 1 . 3 1 1 . . 1 1 Core 5 | . . . . 1 2 . . 2 Reactor . | . . . . . . . . . Propulsion 24 | 3 . 6 . 1 5 . 1 8 Treads . | . . . . . . . . . Leg 4 | 2 . 2 . . . . . . Wheel 5 | 1 . 1 . . . . 1 2 Hover . | . . . . . . . . . Flight 15 | . . 3 . 1 5 . . 6 Utility 29 | 1 1 5 1 3 7 1 2 8 Device 17 | . 1 3 . 2 4 . . 7 Storage 5 | 1 . 2 . 1 1 . . . Processor 4 | . . . 1 . 2 1 . . Hackware 3 | . . . . . . . 2 1 Protection . | . . . . . . . . . Artifact . | . . . . . . . . . Weapon 27 | 2 . 7 1 1 7 . 3 6 Energy Gun 10 | . . 4 . . . . 3 3 Energy Cannon 3 | . . . . . 2 . . 1 Ballistic Gun 10 | 2 . 2 . 1 3 . . 2 Ballistic Cannon 2 | . . . . . 2 . . . Launcher 1 | . . 1 . . . . . . Special Weapon . | . . . . . . . . . Impact Weapon . | . . . . . . . . . Slashing Weapon . | . . . . . . . . . Piercing Weapon . | . . . . . . . . . Special Melee Weapon 1 | . . . 1 . . . . . Unidentified Prototypes 2 | . . 2 . . . . . . Corrupted Parts 1 | . . . . . . . . 1 System Corruption 1 | . . . . . . . . 1 Parts Lost 57 | . . 8 . 1 12 . 8 28 Power 10 | . . 2 . . 1 . 2 5 Propulsion 19 | . . 3 . 1 4 . 3 8 Utility 13 | . . 1 . . 4 . 1 7 Weapon 15 | . . 2 . . 3 . 2 8 Highest Loss Streak 14 | . . 4 . 1 6 . 7 14 To Critical Strikes 1 | . . . . . . . 1 . Average Backups 6 | 2 6 6 4 6 7 7 7 5 Power . | . 1 1 . 1 1 1 . . Propulsion . | 1 2 1 1 . . 1 . . Utility 2 | . . . . 3 3 3 4 4 Weapon 1 | . 1 2 2 1 1 2 2 . Tool/Special . | . . . . . . . . . Unused Backups 13 | . . 2 . 2 3 . 3 3 Power . | . . . . . . . . . Propulsion . | . . . . . . . . . Utility 7 | . . . . . 2 . 2 3 Weapon 6 | . . 2 . 2 1 . 1 . Tool/Special . | . . . . . . . . . Average Slot Usage (%) 86 | . 96 95 99 98 83 89 84 71 Engine 5 | . 14 10 11 4 . . 4 5 Core 3 | . . . . 4 10 13 4 . Leg 8 | . 28 28 . . . . . . Flight 12 | . . 2 33 35 19 26 16 7 Device 15 | . 11 20 20 17 13 6 6 16 Storage 7 | . 14 10 11 9 7 6 6 3 Processor 9 | . . . 1 9 15 23 26 13 Hackware 1 | . . . . . . . 4 5 Energy Gun 6 | . . 14 7 4 . . 6 12 Ballistic Gun 8 | . 28 6 13 13 6 . . . Ballistic Cannon 2 | . . . . . 6 13 5 . Peak Build Rating 80 | 6 7 18 19 28 41 44 48 80 Average Rating 30 | 4 6 14 17 25 32 43 41 54 On Entrance 22 | . 6 7 16 19 26 41 44 44 Naked Turns . | . . . . . . . . . Heaviest Build 34 | 12 13 34 12 20 27 27 27 33 Greatest Support 36 | 20 20 33 12 21 31 31 31 36 Greatest Overweight (x) 5 | 3 . 3 . . 5 . 1 2 Average Overweight (x) . | . . . . . . . . . Largest Inventory Capacity 15 | 8 8 15 5 8 8 8 8 8 Average Capacity 7 | 7 8 8 5 7 8 8 8 6 Most Carried 8 | 4 8 8 5 8 8 8 8 8 Average Carried 6 | 2 6 6 4 6 7 7 7 5 Final Capacity 8 | 8 8 5 5 8 8 8 8 5 Final Carried 8 | 4 8 4 5 7 8 7 8 4 Class Distribution -------------------- 43% | Mutant 16% | Scavenger-Sprinter 14% | Sprinter 9% | Scavenger-Mutant 6% | Gunner 5% | Infiltrator-Skirmisher 3% | Infiltrator-Gunner Dominant Class ---------------- Mutant | -10/Materials Mutant | -9/Materials Sprinter | -9/Mines Sprinter | -8/Materials Scavenger-Sprinter | -7/Factory Scavenger-Sprinter | -6/Factory Scavenger-Mutant | -6/DSF Mutant | -5/Factory Resources | -11 -10 -9 -9 -8 -7 -6 -6 -5 ----------- Run | Yrd Mat Mat Min Mat Fac Fac DSF Fac Matter Collected 1898 | 229 18 452 185 165 597 12 60 180 Remotely . | . . . . . . . . . Salvage Created 2586 | . 129 477 67 430 964 7 119 393 Parts 127 | . 8 38 7 18 30 . 7 19 Haulers Intercepted 1 | . . 1 . . . . . . Recyclers Shooed 4 | . . . . 3 1 . . . Parts Field Recycled . | . . . . . . . . . Retrieved Matter . | . . . . . . . . . Parts Self-Destructed . | . . . . . . . . . Prevented . | . . . . . . . . . Kills | -11 -10 -9 -9 -8 -7 -6 -6 -5 ------- Run | Yrd Mat Mat Min Mat Fac Fac DSF Fac Combat Hostiles Destroyed 50 | . 3 13 4 4 13 . 3 10 Guns 37 | . 3 10 4 4 9 . 1 6 Cannons 6 | . . . . . 4 . 2 . AOE 7 | . . 3 . . . . . 4 Classes Destroyed 15 | . 3 4 . 2 3 . 2 1 Worker 1 | . . . . . 1 . . . Builder 1 | . . . . . 1 . . . Tunneler 1 | . . . . . . . . 1 Hauler 1 | . . 1 . . . . . . Recycler 9 | . . . . 3 6 . . . Operator 2 | . . 1 . . . 1 . . Watcher 8 | . 1 2 . . 3 . . 2 Swarmer 25 | . 1 4 4 . 9 . . 7 Grunt 12 | . 2 6 . 2 1 . . 1 Duelist 1 | . . 1 . . . . . . Sentry 4 | . . 2 . 1 1 . . . Specialist 1 | . . . . . . . 1 . Hunter 3 | . . . . 1 1 . 1 . Programmer 3 | . . . . . 1 . . 2 Heavy 1 | . . . . . . . 1 . Best Kill Streak 7 | . 3 7 4 3 5 1 1 5 Combat Bots Only 6 | . 2 6 4 2 3 . 1 4 Max Kills in Single Turn 5 | . 1 3 1 1 2 1 1 5 Gunslinging 1 | . . . . . 1 . . . Exploded 4 | . . 2 . . . . . 4 Melee . | . . . . . . . . . Uniques/NPCs Destroyed . | . . . . . . . . . Combat | -11 -10 -9 -9 -8 -7 -6 -6 -5 -------- Run | Yrd Mat Mat Min Mat Fac Fac DSF Fac Hostile Shots Fired 593 | . 29 88 16 25 153 . 42 240 Missed 198 | . 12 18 7 9 62 . 11 79 Hits 395 | . 17 70 9 16 91 . 31 161 Projectile 395 | . 17 70 9 16 91 . 31 161 Critical Strikes 14 | . . 3 . 1 3 . 1 6 Damage Taken 6240 | . 142 1028 74 257 1209 . 768 2762 Core 1820 | . 18 148 51 122 250 . 222 1009 Absorbed by Shields 56 | . . . . . . . 56 . Ignored by Resistances 110 | . . . . . . . . 110 Regen/Repaired (Parts) 45 | . . . . . 18 . . 27 Core Remaining (%) 76 | 100 92 . 50 77 64 . 73 . Volleys Fired 194 | . 16 39 5 26 55 1 20 32 Largest 3 | . 2 2 2 2 2 2 2 3 Hottest 450 | . 40 126 86 86 120 80 450 225 Shots Fired 370 | . 32 77 10 52 103 2 35 59 Gun 308 | . 32 74 10 52 66 . 16 58 Cannon 59 | . . . . . 37 2 19 1 Launcher 3 | . . 3 . . . . . . Special . | . . . . . . . . . Kinetic 197 | . 32 16 5 40 83 2 19 . Thermal 154 | . . 58 5 12 20 . 7 52 Explosive 3 | . . 3 . . . . . . Electromagnetic 16 | . . . . . . . 9 7 Robot Hit Streak 23 | . 4 8 6 16 23 1 8 14 Robot Miss Streak 9 | . 3 4 1 1 9 1 3 4 Penetration Max 1 | . . . . 1 . . . . Secondary Targets 7 | . 1 1 . . 4 . . 1 Max Gunslinging Chain 1 | . 1 1 . . 1 . . 1 Shots Hit Robots 239 | . 15 44 7 41 66 1 25 40 Core Hits 128 | . 7 26 4 13 45 1 9 23 Critical Kills . | . . . . . . . . . Critical Parts Destroyed . | . . . . . . . . . Critical Strikes 4 | . . 1 . . 1 1 1 . Burn 1 | . . 1 . . . . . . Blast 3 | . . . . . 1 1 1 . Melee Attacks . | . . . . . . . . . Impact . | . . . . . . . . . Slashing . | . . . . . . . . . Piercing . | . . . . . . . . . Sneak Attacks . | . . . . . . . . . Combat Hostiles . | . . . . . . . . . Follow-up Attacks . | . . . . . . . . . Damage Inflicted 5258 | . 185 1025 125 658 1345 31 618 1271 Guns 3550 | . 185 789 125 658 821 . 248 724 Cannons 883 | . . . . . 482 31 370 . Explosions 824 | . . 236 . . 42 . . 546 Melee . | . . . . . . . . . Ramming 1 | . . . . . . . . 1 Kinetic 2449 | . 185 216 59 485 1103 31 370 . Thermal 1862 | . . 573 66 173 242 . 185 623 Explosive 782 | . . 236 . . . . . 546 Electromagnetic 164 | . . . . . . . 63 101 Impact . | . . . . . . . . . Slashing . | . . . . . . . . . Piercing . | . . . . . . . . . Highest Corruption 15 | . . 2 2 . 1 . . 15 Average Corruption 4 | . . 1 2 . 1 . . 12 Corruption Purged . | . . . . . . . . . Corruption Blocked . | . . . . . . . . . Effects 25 | . . 6 2 . 1 . . 16 Message Errors 9 | . . 2 . . . . . 7 Matter Fused 6 | . . 2 . . 1 . . 3 Heat Flow Errors 1 | . . . . . . . . 1 Energy Discharges 3 | . . 1 1 . . . . 1 Data Loss (minor) 3 | . . 1 1 . . . . 1 Alerts 1 | . . . . . . . . 1 Misdirections 1 | . . . . . . . . 1 Weapon Failures 1 | . . . . . . . . 1 Overload Shots 2 | . . . . . . . 2 . Overflow Damage 124 | . . 3 . . . . . 121 Projectiles . | . . . . . . . . . Explosions 124 | . . 3 . . . . . 121 Melee . | . . . . . . . . . Knockbacks 3 | . . . . . 2 . 1 . Impact . | . . . . . . . . . Kinetic 3 | . . . . . 2 . 1 . Secondary . | . . . . . . . . . Self-Inflicted Damage 305 | . . 108 . . . . . 197 Shots 5 | . . 3 . . . . . 2 Rammed 1 | . . . . . . . . 1 Targets Rammed 1 | . . . . . . . . 1 Kicked . | . . . . . . . . . Crushed . | . . . . . . . . . Highest Temperature 563 | . . 563 . 162 336 27 323 563 Average Temperature 103 | . . 194 . 67 61 16 165 150 Received Heat Transfer 855 | . 18 366 . 18 120 . 54 279 Effects 17 | . . 10 . . 1 . 1 5 Shutdowns 2 | . . 1 . . 1 . . . Energy Bleed 2 | . . 2 . . . . . . Interference 4 | . . 3 . . . . 1 . Matter Decay 1 | . . . . . . . . 1 Short Circuit 3 | . . 1 . . . . . 2 Damage (minor) 2 | . . . . . . . . 2 Damage (major) 3 | . . 3 . . . . . . Siege Activations . | . . . . . . . . . Martial Activations . | . . . . . . . . . Shielding Activations . | . . . . . . . . . Robots Disrupted . | . . . . . . . . . Combat Hostiles . | . . . . . . . . . Robots Corrupted . | . . . . . . . . . Combat Hostiles . | . . . . . . . . . Parts Fried . | . . . . . . . . . Impact Corruptions . | . . . . . . . . . Robots Melted . | . . . . . . . . . Combat Hostiles . | . . . . . . . . . Parts Melted 8 | . . 1 . 1 . . . 6 Heat Transferred 3776 | . . 1332 148 370 383 . 248 1295 Parts Sabotaged . | . . . . . . . . . Parts Stolen . | . . . . . . . . . Parts Stripped . | . . . . . . . . . Power Chain Reactions . | . . . . . . . . . Alert | -11 -10 -9 -9 -8 -7 -6 -6 -5 ------- Run | Yrd Mat Mat Min Mat Fac Fac DSF Fac Maximum Alert Level 1 | . . 1 . . 1 . . 1 Low Security (%) 73 | 100 100 84 100 100 19 100 100 93 Level 1 26 | . . 15 . . 80 . . 6 Level 2 . | . . . . . . . . . Level 3 . | . . . . . . . . . Level 4 . | . . . . . . . . . Level 5 . | . . . . . . . . . High Security . | . . . . . . . . . Max Security . | . . . . . . . . . Peak Influence 386 | . 86 219 160 118 325 152 106 386 Initial 147 | . . 20 70 46 51 147 106 50 Average 109 | . 22 122 105 54 219 152 97 47 Influence Increases 2573 | . 151 501 120 207 767 5 70 752 Destroy 0b10 Robot/C 1000 | . 60 260 80 80 260 . 60 200 Destroy 0b10 Robot/NC 115 | . 5 20 . 15 55 5 . 15 Destroy Leader 208 | . 12 56 10 20 66 . 10 34 Successful Hack 126 | . 29 12 . 16 32 . . 37 Disable Machine 315 | . . 45 . 30 195 . . 45 Destroy Structure 149 | . . 48 . 1 24 . . 76 Partial Spotted 90 | . . . 30 15 15 . . 30 Lose Combat Pursuer 570 | . 45 60 . 30 120 . . 315 Influence Decreases 2215 | . 103 366 183 214 580 153 126 490 Entered New Map 522 | . . 28 113 74 62 153 46 46 Time Decay 1201 | . 103 258 70 130 398 . . 242 Lost Part 472 | . . 80 . 10 120 . 80 182 Lost Ally 20 | . . . . . . . . 20 Squads Dispatched 12 | . 1 . . . 4 . 1 6 Investigation 2 | . . . . . 1 . . 1 Extermination 4 | . . . . . 2 . . 2 Reinforcement 6 | . 1 . . . 1 . 1 3 Assault . | . . . . . . . . . Garrison . | . . . . . . . . . Intercept . | . . . . . . . . . Searches Triggered . | . . . . . . . . . Construction Impeded . | . . . . . . . . . Haulers Reinforced . | . . . . . . . . . Active Scanning Responses . | . . . . . . . . . Cargo Convoy Interrupts . | . . . . . . . . . Stealth | -11 -10 -9 -9 -8 -7 -6 -6 -5 --------- Run | Yrd Mat Mat Min Mat Fac Fac DSF Fac Distress Signals 10 | . 2 3 . 1 1 . . 3 Communications Jammed 7 | . . . . . 1 . . 6 Distress Signals 7 | . . . . . 1 . . 6 Times Spotted 121 | . 10 22 4 7 31 . 4 43 Peak Tracking Total 13 | . 3 7 4 4 6 . 2 13 Tactical Retreats 20 | . 2 2 . 1 6 . . 9 Traps | -11 -10 -9 -9 -8 -7 -6 -6 -5 ------- Run | Yrd Mat Mat Min Mat Fac Fac DSF Fac Traps Triggered 9 | . . 2 . . 1 . 4 2 Indirectly . | . . . . . . . . . Trap Hack Attempts . | . . . . . . . . . Triggered . | . . . . . . . . . Disarmed . | . . . . . . . . . Reprogrammed 4 | . . . . 4 . . . . Reused . | . . . . . . . . . Traps Extracted . | . . . . . . . . . Installed . | . . . . . . . . . Triggered . | . . . . . . . . . Machines | -11 -10 -9 -9 -8 -7 -6 -6 -5 ---------- Run | Yrd Mat Mat Min Mat Fac Fac DSF Fac Machines Disabled 22 | . . 4 . 2 13 . . 3 Max in Single Turn 11 | . . 3 . 1 11 . . 3 Machines Repaired . | . . . . . . . . . Machines Dismantled . | . . . . . . . . . Machines Sabotaged . | . . . . . . . . . Overloaded Fab Kills . | . . . . . . . . . Hacking | -11 -10 -9 -9 -8 -7 -6 -6 -5 --------- Run | Yrd Mat Mat Min Mat Fac Fac DSF Fac Machines Accessed 32 | . 3 2 . 3 16 1 . 7 Terminals 22 | . 3 2 . 3 9 1 . 4 Fabricators 3 | . . . . . 2 . . 1 Repair Stations 2 | . . . . . 1 . . 1 Recycling Units 3 | . . . . . 2 . . 1 Scanalyzers 2 | . . . . . 2 . . . Garrison Access . | . . . . . . . . . Total Hacks 77 | . 15 5 . 9 30 1 . 17 Successful 41 | . 8 3 . 5 14 1 . 10 Failed 36 | . 7 2 . 4 16 . . 7 Catastrophic 9 | . 1 1 . 1 6 . . . Database Lockouts . | . . . . . . . . . Manual . | . . . . . . . . . Terminals 56 | . 15 5 . 9 16 1 . 10 Fabricators 7 | . . . . . 5 . . 2 Repair Stations 6 | . . . . . 2 . . 4 Recycling Units 3 | . . . . . 2 . . 1 Scanalyzers 5 | . . . . . 5 . . . Garrison Access . | . . . . . . . . . Terminal Hacks 26 | . 8 3 . 5 5 1 . 4 Record 4 | . . 2 . . 1 . . 1 Robot Analysis 1 | . 1 . . . . . . . Prototype ID Bank 1 | . 1 . . . . . . . Open DSF 5 | . . . . . 3 1 . 1 Branch Access Points 1 | . . . . 1 . . . . Emergency Access Points 1 | . 1 . . . . . . . Alert Level 1 | . . . . 1 . . . . Locate Traps 3 | . 1 . . 1 1 . . . Reprogram Traps 1 | . . . . 1 . . . . Investigation Status 1 | . . . . . . . . 1 Reinforcement Status 1 | . 1 . . . . . . . Recall Reinforcements 1 | . . . . . . . . 1 Zone Layout 5 | . 3 1 . 1 . . . . Fabricator Hacks 3 | . . . . . 1 . . 2 Load Schematic 1 | . . . . . . . . 1 Build 2 | . . . . . 1 . . 1 Repair Station Hacks 5 | . . . . . 2 . . 3 Scan Component 2 | . . . . . 1 . . 1 Repair 2 | . . . . . 1 . . 1 Refit 1 | . . . . . . . . 1 Recycling Unit Hacks 3 | . . . . . 2 . . 1 Report Inventory 2 | . . . . . 2 . . . Retrieve Components 1 | . . . . . . . . 1 Scanalyzer 4 | . . . . . 4 . . . Insert Component 2 | . . . . . 2 . . . Analyze 2 | . . . . . 2 . . . Garrison Access Hacks . | . . . . . . . . . Unauthorized Hacks . | . . . . . . . . . Terminals . | . . . . . . . . . Fabricators . | . . . . . . . . . Repair Stations . | . . . . . . . . . Recycling Units . | . . . . . . . . . Scanalyzers . | . . . . . . . . . Garrison Access . | . . . . . . . . . Data Cores Recovered 1 | . . . . . . 1 . . Used . | . . . . . . . . . Hacking Detections 26 | . 3 2 . 3 14 1 . 3 Full Trace Events 2 | . . . . . 1 . . 1 Feedback Events . | . . . . . . . . . Feedback Blocked . | . . . . . . . . . Robot Schematics Acquired . | . . . . . . . . . Robots Built . | . . . . . . . . . Authchips . | . . . . . . . . . Time . | . . . . . . . . . Total Robot Build Rating . | . . . . . . . . . Part Schematics Acquired 2 | . . . . . 2 . . . Parts Built 4 | . . . . . 2 . . 2 Authchips 1 | . . . . . . . . 1 Time 159 | . . . . . 53 . . 106 Total Part Build Rating 24 | . . . . . 12 . . 12 Parts Repaired 2 | . . . . . 1 . . 1 Time 88 | . . . . . 32 . . 56 Parts Recycled . | . . . . . . . . . Recycled Matter . | . . . . . . . . . Retrieved Matter . | . . . . . . . . . Retrieved Components 3 | . . . . . . . . 3 Parts Scanalyzed 2 | . . . . . 2 . . . Part Schematics Acquired 2 | . . . . . 2 . . . Parts Damaged . | . . . . . . . . . Bothacking | -11 -10 -9 -9 -8 -7 -6 -6 -5 ------------ Run | Yrd Mat Mat Min Mat Fac Fac DSF Fac Used RIF Installer . | . . . . . . . . . Robots Hacked . | . . . . . . . . . Non-combat . | . . . . . . . . . Combat . | . . . . . . . . . Robot Hacks Applied . | . . . . . . . . . Relay Couplers Released . | . . . . . . . . . Fabnet Peak Effective % . | . . . . . . . . . Robots Rewired . | . . . . . . . . . Allies Hacked . | . . . . . . . . . Hacks Repelled . | . . . . . . . . . Allies | -11 -10 -9 -9 -8 -7 -6 -6 -5 -------- Run | Yrd Mat Mat Min Mat Fac Fac DSF Fac Total Allies . | . . . . . . . . . Largest Group . | . . . . . . . . . Highest-Rated Group . | . . . . . . . . . Highest-Rated Ally . | . . . . . . . . . Total Orders . | . . . . . . . . . Ally Attacks . | . . . . . . . . . Total Damage . | . . . . . . . . . Kills . | . . . . . . . . . Allies Corrupted . | . . . . . . . . . Allies Melted . | . . . . . . . . . Intel | -11 -10 -9 -9 -8 -7 -6 -6 -5 ------- Run | Yrd Mat Mat Min Mat Fac Fac DSF Fac Active Infowar (turns) 3202 | . 335 608 157 269 916 10 176 731 Optics 1481 | . . . . . 568 10 176 727 Sensors 1896 | . 335 608 157 269 331 . . 196 Cloaking 446 | . . . . . . . . 446 Jamming 329 | . . . . . 280 . . 49 Robot Analysis Total 1 | . 1 . . . . . . . Derelict Logs Recovered 2 | . . . 2 . . . . . Drone Launches 2 | . . . . . . . . 2 Drone Recoveries . | . . . . . . . . . Exploration | -11 -10 -9 -9 -8 -7 -6 -6 -5 ------------- Run | Yrd Mat Mat Min Mat Fac Fac DSF Fac Turns Passed 3529 | 66 414 617 157 269 958 10 176 862 Spaces Moved 4221 | 42 252 402 393 391 1631 18 89 1003 Core 265 | 21 . . . . 1 . . 243 Treads . | . . . . . . . . . Legs 585 | 21 252 312 . . . . . . Wheels 277 | . . 21 . . . . 4 252 Hover 8 | . . . . . . . . 8 Flight 3086 | . . 69 393 391 1630 18 85 500 Fastest Speed 29 | 50 120 29 29 29 29 31 31 32 Average Speed 54 | 117 120 107 29 29 39 31 50 61 Slowest Speed 435 | 200 120 190 29 35 435 31 117 195 Overloaded Moves . | . . . . . . . . . Propulsion Burnouts . | . . . . . . . . . Robots Hopped 22 | . . . 1 2 6 . . 13 Potential Cave-ins . | . . . . . . . . . Cave-ins Triggered . | . . . . . . . . . Exploration Rate (%) 39 | 4 40 41 66 23 39 . 79 23 Regions Visited 8 Branch Regions 1 Pre-discovered Areas . | . . . . . . . . . Known Exits Taken 1 | . . . . . . 1 . . Unknown Exits Taken 6 | 1 1 1 1 1 1 . . . Scrap Searched 2 | . . . 2 . . . . . Spaces Dug . | . . . . . . . . . Terrain Destroyed 118 | . . 54 . . 24 . . 40 Melee . | . . . . . . . . . Projectile 4 | . . . . . 4 . . . AOE 114 | . . 54 . . 20 . . 40 Terrain Rammed . | . . . . . . . . . Walls Destroyed . | . . . . . . . . . Machines Disabled . | . . . . . . . . . Actions | -11 -10 -9 -9 -8 -7 -6 -6 -5 --------- Run | Yrd Mat Mat Min Mat Fac Fac DSF Fac Total 5055 | 59 331 511 425 491 1848 19 187 1184 Wait 309 | . 58 13 9 51 69 . 15 94 Move 4172 | 41 251 401 390 386 1619 17 88 979 Hop 19 | . . . 1 2 5 . . 11 Pick Up 122 | 10 5 19 8 11 32 . 12 25 Fast Attach . | . . . . . . . . . Attach 83 | 7 1 14 1 2 24 1 6 27 Detach 14 | 1 . 1 . . 7 . . 5 Swap 33 | . . 11 4 6 4 . 1 7 Drop 50 | . . 13 7 7 15 . 5 3 Fire 194 | . 16 39 5 26 55 1 20 32 Melee . | . . . . . . . . . Ram 1 | . . . . . . . . 1 Kick . | . . . . . . . . . Crush . | . . . . . . . . . Escape Stasis 58 | . . . . . 18 . 40 . Rewire . | . . . . . . . . . Trap . | . . . . . . . . . Miscellaneous . | . . . . . . . . . Route ------- -11/Scrapyard -10/Materials (discovered 2 exits: *Mat / [*Min]) -9/Materials -9/Mines -8/Materials -7/Factory -6/Factory -6/DSF -5/Factory History --------- Turn | Location | Event 22 | -11/Scrapyard | Discovered new exit (range 15) 67 | -11/Scrapyard | Entered Materials 158 | -10/Materials | Discovered new exit (range 14) 300 | -10/Materials | Build established: Mutant 429 | -10/Materials | Discovered new exit (range 10) 481 | -10/Materials | Entered another Materials area 481 | -9/Materials | Evolved 2 slots: Propulsion x1, Utility x1 769 | -9/Materials | Discovered new exit (range 16) 851 | -9/Materials | Lost 4 parts (1p1n1u1w) 1036 | -9/Materials | Lost 4 parts (1p2n1w) 1098 | -9/Materials | Entered Mines 1112 | -9/Mines | Received a Rocket Launcher from a helpful Derelict 1121 | -9/Mines | Found DCF Scrap (11 items) 1127 | -9/Mines | Met a Derelict bent on vengeance 1152 | -9/Mines | Discovered new exit (range 11) 1153 | -9/Mines | Learned Materials security intel 1230 | -9/Mines | Learned Materials emergency access door positions 1255 | -9/Mines | Entered Materials 1255 | -8/Materials | Evolved 2 slots: Propulsion x1, Utility x1 1341 | -8/Materials | Build established: Sprinter 1513 | -8/Materials | Discovered new exit (range 5) 1524 | -8/Materials | Entered Factory 1524 | -7/Factory | Evolved 2 slots: Power x1, Utility x1 1627 | -7/Factory | Lost 3 parts (3n) 1903 | -7/Factory | Lost 6 parts (3u3w) 2014 | -7/Factory | Fabricated Field Propulsion Drive (x2) 2327 | -7/Factory | Build established: Scavenger-Sprinter 2400 | -7/Factory | Repaired VTOL Module 2440 | -7/Factory | Discovered new exit (range 11) 2482 | -7/Factory | Entered another Factory area 2482 | -6/Factory | Evolved 2 slots: Utility x2 2491 | -6/Factory | Identified exit to DSF 2492 | -6/Factory | Entered DSF 2546 | -6/DSF | Additional patrols routed to DSF 2616 | -6/DSF | Lost 7 parts (2p2n1u2w) 2627 | -6/DSF | Discovered new exit (range 15) 2668 | -6/DSF | Entered Factory 2668 | -5/Factory | Evolved 2 slots: Utility x1, Weapon x1 2904 | -5/Factory | Fabricated Field Propulsion Drive (x2) 3265 | -5/Factory | System corruption reached 10% 3309 | -5/Factory | Repaired Field Propulsion Drive? 3324 | -5/Factory | Lost 14 parts (3p4n3u4w) 3370 | -5/Factory | Core integrity fell below 50% 3461 | -5/Factory | Lost 8 parts (2p1n3u2w) 3471 | -5/Factory | Core integrity fell below 20% 3530 | -5/Factory | Destroyed by S-27 Virus with Autogun Last Messages --------------- U-05 Engineer builds a Wall. U-05 Engineer lays Concrete. The unstable cave ceiling collapses. K-01 Serf collects debris. U-05 Engineer lays Concrete. Slug penetrates Wall. XD/M2UYZWAYTJRK%ECFYMZ5G Slug penetrates Wall. Acquired Com. Wheel. Slug penetrates Wall. VTOL Module destroyed. Slug penetrates Wall. Wall collapses. Slug penetrates Wall. VTOL Module destroyed. Autogun destroyed. Slug penetrates Wall. Autogun destroyed. Slug penetrates Wall. System corrupted: Heat flow error (+232). Map ----- +----------------------------------------------------+ | ???????????# # #????????????????? | | ???????????# # #????????????????? | | ???????????# # #????????????????? | | ???????????# / #????????????????? | | ???????????# # #????????????????? | | ???????????#= ! " #????????????????? | | ???????????#= # #????????????????? | | ???????????# # #????????????????? | | ???????????# # #????????????????? | | ???????????# # #????????????????? | | ???????????# # #????????????????? | | ############ # #????????????????? | | # ##+####+######????????????????? | | / #? ???????????????????????????? | | # #? ??? ??????????????????????? | | # #? #?? ??????????????????????? | | ########## # #? #? ""?????????????????????? | | ?????????#/########## #? ""?????????????????????? | | ?????????# ## #? "??????????????????????? | | ?????????# ## ## ???????????????????????? | | ?????????# # ???????????????????????? | | ?????????# + ????????????????????????? | | ?????????# # ?????????????????????????? | | ?????????# """ # ###+######????????????????? | | ?????????# """"" # # #????????????????? | | ?????????# """"" # # @ #????????????????? | | ?????????########+## # """ #????????????????? | | ????????????????# # """ #????????????????? | | ????????????????# # """ #????????????????? | | ????????????????# # #????????????????? | | ????????????????# /s """ #????????????????? | | ????????????????# # """ #????????????????? | | ????????????????# # """ #????????????????? | | ????????????????# # #????????????????? | | ????????????????# # """ #????????????????? | | ??????????????? + """ #????????????????? | | ??????????????########## """ #????????????????? | | ???????????????????????? ?????????????????? | | ???????????????????????? ?????????????????????? | | ????????????????????????####?????????????????????? | | | | | | | | | | | | | | | | | | | | | +----------------------------------------------------+ Best States ------------- Heat Dissipation 50 Energy Generation 24 Energy Capacity 265 Matter Stores 450 Matter Capacity 450 Sight Range 18 Robot Scan Range 18 Terrain Scan Density 10 Jamming Range 14 Cloak Strength 3 Additional Mass Support 9 Resistance: KI 25 Evasion (%) 71 Targeting Accuracy 11 Core Analysis 6 Offensive Hacking 12 Defensive Hacking 10 Authchip Count 3 Item Schematics ----------------- Adv. Weight Redist. System | -7/Factory | Scanalyzed Field Propulsion Drive | -7/Factory | Scanalyzed Robot Schematics ------------------ None Fabricated ------------ Field Propulsion Drive | x2 | -7/Factory | Preloaded Field Propulsion Drive | x2 | -5/Factory | Authchip Repaired ---------- VTOL Module | 28% | -7/Factory Field Propulsion Drive | 10% | -5/Factory Alien Tech Used ----------------- None Achievements -------------- GoHome() It Was An Accident, I Swear Challenges ------------ None Game ------ Seed VisualCryofiberBroadsword Manual? 0 Play Time 01:38:47 Cumulative 5.0 hours Start 2025.06.27 @ 18:52:28 End 2025.06.27 @ 20:35:30 Sessions 1 Manual Loads 0 Difficulty Rogue Special Mode None Game No. 7 Rogue 7 Adventurer 0 Explorer 0 Win Type - Total 0 Types 0/0/0/0/0/0/0/0/0/0 Lore% 2 Gallery% 13 Achievement% 12 Wizard Run 0 Options --------- Layout 1 ASCII 0 Keyboard 0 Movement Numpad Keybinds 0 Fullscreen 1 Font 24/Smallcaps Map View 50x35 Zoom Use 0% Tactical HUD 0 Map Filters NONE Filters NONE Steam 1 RUN: 4962b03c-94c7-4a56-8502-d508700bbbc3